bitfinex-derivatives/quotes_ETHF0:USTF0_20210403
["timestamp","ask_amount","ask_price","bid_price","bid_amount"]
[1617452255109,5.04015,2095.1,2095.0,2.90695]
[1617452259514,2.90695,2095.1,2095.0,2.90695]
[1617452261715,5.04535,2095.1,2095.0,2.90695]
[1617452265221,2.90695,2095.1,2095.0,2.90695]
[1617452267323,4.68745,2095.1,2095.0,2.90695]
[1617452269426,4.68745,2095.1,2095.0,7.90773983]
[1617452272828,4.68745,2095.1,2095.0,2.90695]
[1617452274231,2.90695,2095.1,2095.0,9.15885815]
[1617452274631,2.90695,2095.1,2095.0,3.04721335]
[1617452280438,2.90695,2095.1,2095.0,9.16063399]
[1617452280738,2.90695,2095.1,2095.0,9.02037064]
[1617452281037,2.90695,2095.1,2095.0,2.90695]
[1617452281238,2.90695,2095.1,2095.0,3.04721653]
[1617452281642,2.90695,2095.1,2095.0,2.90695]
[1617452283241,2.90695,2095.1,2095.0,3.04721141]
[1617452283643,2.90695,2095.1,2095.0,10.2803194]
[1617452286344,2.90695,2095.1,2095.0,3.04721141]
[1617452286745,2.0,2097.5,2095.8,2.90695]
[1617452287045,14.8294,2097.5,2096.6,57.1196]
[1617452287246,14.8294,2097.5,2096.3,2.0306]
[1617452287548,2.0,2097.5,2097.2,57.1077]
[1617452288747,2.90695,2097.3,2097.2,57.1077]
[1617452297655,2.90695,2097.3,2097.2,62.12211282]
[1617452297855,2.90695,2097.3,2097.2,57.1077]
[1617452298155,2.90695,2097.3,2097.2,62.12194819]
[1617452298355,2.90695,2097.3,2097.2,57.1077]
[1617452299556,2.90695,2097.3,2097.2,63.23496981]
[1617452300357,2.90695,2097.3,2097.2,6.12726981]
[1617452300560,2.90695,2097.3,2097.1,2.90695]
[1617452302860,2.90695,2097.3,2097.2,7.24917434]
[1617452303060,2.90695,2097.3,2097.2,8.85397434]
[1617452303263,2.90695,2097.3,2097.2,1.6048]
[1617452305461,2.90695,2097.3,2097.2,6.60177424]
[1617452305662,2.90695,2097.3,2097.2,70.92187424]
[1617452309669,2.90695,2097.3,2097.2,6.60177424]
[1617452309867,31.0723,2098.2,2097.3,62.0115]
[1617452309868,17.571,2098.2,2097.3,62.0115]
[1617452310671,17.571,2098.2,2097.7,4.99145973]
[1617452310873,17.571,2098.2,2097.7,6.68915973]
[1617452311075,17.571,2098.2,2098.1,2.90695]
[1617452311278,15.0,2098.2,2098.1,2.90695]
[1617452312977,17.90695,2098.2,2098.1,2.90695]
[1617452313778,13.0,2098.2,2098.1,2.90695]
[1617452314980,17.90695,2098.2,2098.1,2.90695]
[1617452315181,16.90695,2098.2,2098.1,2.90695]
[1617452315580,17.90695,2098.2,2098.1,2.90695]
[1617452317282,13.90695,2098.2,2098.1,2.90695]
[1617452317784,9.90695,2098.2,2098.1,2.90695]
[1617452318184,7.0,2098.2,2098.1,2.90695]
[1617452319083,15.0,2098.2,2098.1,2.90695]
[1617452321486,15.0,2098.2,2098.1,4.90695]
[1617452324587,15.0,2098.2,2098.1,75.96925]
[1617452327892,15.0,2098.2,2098.1,4.90695]
[1617452337297,13.0,2098.2,2098.1,4.90695]
[1617452337696,15.0,2098.2,2098.1,4.90695]
[1617452337895,14.0,2098.2,2098.1,4.90695]
[1617452339199,15.0,2098.2,2098.1,4.90695]
[1617452339899,11.0,2098.2,2098.1,4.90695]
[1617452341100,15.0,2098.2,2098.1,4.90695]
[1617452341303,7.0,2098.2,2098.1,4.90695]
[1617452341601,15.0,2098.2,2098.1,4.90695]
[1617452343002,16.705,2098.2,2098.1,2.90695]
[1617452343603,16.705,2098.2,2097.2,2.0]
[1617452345307,16.705,2098.2,2098.1,2.90695]
[1617452345609,16.705,2098.2,2097.2,2.0]
[1617452347210,16.705,2098.2,2098.0,2.90695]
[1617452348011,16.705,2098.2,2097.1,61.9858]
[1617452348212,56.0905,2098.1,2096.6,74.7328]
[1617452349212,56.0905,2098.1,2097.2,2.90695]
[1617452351317,2.90695,2097.3,2097.2,2.90695]
[1617452351617,4.59855,2097.3,2097.2,2.90695]
[1617452356626,4.59855,2097.3,2096.6,74.7328]
[1617452357326,4.55095,2096.7,2096.6,2.90695]
[1617452358730,4.55095,2096.7,2095.9,6.97647812]
[1617452359031,4.55095,2096.7,2096.0,0.14018844]
[1617452359233,1.644,2096.7,2096.2,2.90695]
[1617452360832,1.644,2096.7,2095.9,4.97646454]
[1617452361233,1.644,2096.7,2096.2,2.90695]
[1617452361535,1.644,2096.7,2095.8,4.97660884]
[1617452362635,68.6883,2097.1,2095.8,4.97660884]
[1617452363237,2.90695,2095.9,2095.8,4.97660884]
[1617452363436,5.26995,2095.9,2095.8,4.97660884]
[1617452363936,5.26995,2095.9,2095.7,4.98087588]
[1617452364340,5.26995,2095.9,2095.6,2.90695]
[1617452366338,5.26995,2095.9,2095.7,4.98831035]
[1617452368138,2.90695,2095.9,2095.7,4.98831035]
[1617452368339,2.90695,2095.9,2095.8,4.98806995]
[1617452369240,2.90695,2095.9,2095.7,4.98814034]
[1617452371042,2.90695,2095.9,2095.6,2.90695]
[1617452371043,2.90695,2095.9,2095.6,7.8952877]
[1617452372045,2.90695,2095.9,2095.6,2.90695]
[1617452373647,78.9668,2096.6,2095.6,7.89508268]
[1617452373847,78.9668,2096.6,2095.7,4.98788001]
[1617452374048,2.0,2096.9,2095.7,4.98788001]
[1617452374251,2.0,2096.9,2096.2,66.5039]
[1617452374750,2.0,2097.0,2096.2,66.5039]
[1617452375450,2.90695,2096.3,2096.2,66.5039]
[1617452376850,14.0972,2097.4,2096.2,66.5039]
[1617452377051,14.0972,2097.4,2096.1,2.90695]
[1617452377251,14.0972,2097.4,2096.2,4.99405886]
[1617452377451,14.0972,2097.4,2097.0,2.90695]
[1617452377753,17.0,2098.2,2097.0,5.20965]
[1617452378952,17.0,2098.2,2097.0,2.3027]
[1617452379455,5.47795,2097.1,2097.0,5.20965]
[1617452379852,2.90695,2097.1,2097.0,5.20965]
[1617452380054,2.90695,2097.1,2097.0,2.3027]
[1617452380255,2.90695,2097.1,2096.4,4.99387919]
[1617452380654,2.90695,2097.1,2096.3,70.48115796]
[1617452380855,5.47795,2097.1,2096.3,70.48115796]
[1617452381155,5.47795,2097.1,2096.3,65.4879]
[1617452381356,2.571,2097.1,2096.5,2.90695]
[1617452381755,2.571,2097.1,2096.5,5.05855]
[1617452382757,17.5017,2098.1,2096.5,5.05855]
[1617452382956,17.5017,2098.1,2096.5,2.90695]
[1617452383357,2.90695,2096.6,2096.5,2.90695]
[1617452385261,2.90695,2096.6,2096.5,7.90433127]
[1617452385461,2.90695,2097.2,2096.5,7.90433127]
[1617452385660,2.90695,2097.2,2096.5,9.61623127]
[1617452385862,2.90695,2097.2,2097.1,69.0411]
[1617452389564,2.571,2097.4,2097.1,69.0411]
[1617452389765,17.5017,2098.1,2097.0,4.69095]
[1617452389966,17.5017,2098.1,2097.6,64.1096]
[1617452390167,4.571,2098.1,2097.6,64.1096]
[1617452391368,4.571,2098.1,2097.7,2.90695]
[1617452391768,4.571,2098.1,2097.6,64.1096]
[1617452393473,2.90695,2097.9,2097.8,2.90695]
[1617452394174,2.90695,2097.9,2097.6,64.1096]
[1617452400679,2.571,2098.1,2097.4,2.90695]
[1617452400879,2.571,2098.1,2097.6,2.0789]
[1617452401280,2.571,2098.1,2097.6,7.0652157]
[1617452401580,17.90695,2098.2,2098.0,2.90695]
[1617452401785,17.90695,2098.2,2098.1,58.7969]
[1617452401981,17.90695,2098.2,2098.1,60.4602]
[1617452403584,17.90695,2098.2,2098.1,58.7969]
[1617452406684,15.90695,2098.2,2098.1,58.7969]
[1617452407887,17.90695,2098.2,2098.1,58.7969]
[1617452408087,16.90695,2098.2,2098.1,58.7969]
[1617452408288,17.90695,2098.2,2098.1,58.7969]
[1617452408989,13.90695,2098.2,2098.1,58.7969]
[1617452409390,17.90695,2098.2,2098.1,58.7969]
[1617452409591,9.90695,2098.2,2098.1,58.7969]
[1617452409890,17.90695,2098.2,2098.1,58.7969]
[1617452411691,17.90695,2098.2,2098.1,61.70385]
[1617452412093,17.90695,2098.2,2098.1,2.90695]
[1617452413895,17.90695,2098.2,2097.6,4.98515261]
[1617452414198,17.90695,2098.2,2097.0,7.20033831]
[1617452414199,17.90695,2098.2,2097.7,72.88037624]
[1617452414395,17.90695,2098.2,2097.7,75.39927624]
[1617452414596,17.90695,2098.2,2097.8,4.98238531]
[1617452414997,17.90695,2098.2,2097.9,4.98170134]
[1617452415595,17.90695,2098.2,2098.1,2.90695]
[1617452417098,17.90695,2098.2,2098.1,7.88962]
[1617452417498,17.90695,2098.2,2098.1,86.51452]
[1617452418901,15.0,2098.2,2098.1,7.88962]
[1617452419102,15.0,2098.2,2098.1,2.90695]
[1617452419503,15.0,2098.2,2098.1,8.99381859]
[1617452420203,15.0,2098.2,2098.1,2.90695]
[1617452420403,15.0,2098.2,2098.1,7.88349961]
[1617452421907,15.0,2098.2,2098.1,2.90695]
[1617452423908,15.0,2098.2,2098.1,7.88190577]
[1617452424310,15.0,2098.2,2098.1,2.90695]
[1617452424611,15.0,2098.2,2098.1,7.88192956]
[1617452425812,15.0,2098.2,2098.1,2.90695]
[1617452426014,15.0,2098.2,2098.1,7.88154423]
[1617452426714,15.0,2098.2,2098.1,2.90695]
[1617452427313,15.0,2098.2,2098.1,7.88691612]
[1617452427913,13.0,2098.2,2098.1,7.88691612]
[1617452428413,15.0,2098.2,2098.1,7.88691612]
[1617452428614,14.0,2098.2,2098.1,7.88691612]
[1617452428813,15.0,2098.2,2098.1,7.88691612]
[1617452429314,15.0,2098.2,2098.1,79.46581612]
[1617452429518,11.0,2098.2,2098.1,74.48585]
[1617452429717,13.90695,2098.2,2098.1,74.48585]
[1617452430015,7.0,2098.2,2098.1,74.48585]
[1617452430216,7.0,2098.2,2098.1,79.46655981]
[1617452430415,15.0,2098.2,2098.1,79.46655981]
[1617452431317,15.0,2098.2,2098.1,74.48585]
[1617452431818,15.0,2098.2,2098.1,79.46653355]
[1617452432023,15.0,2098.2,2098.1,74.48585]
[1617452433622,17.90695,2098.2,2098.1,74.48585]
[1617452435621,15.0,2098.2,2098.1,74.48585]
[1617452436724,15.0,2098.2,2098.1,2.90695]
[1617452436924,15.0,2098.2,2097.9,6.08689571]
[1617452437127,17.3445,2098.2,2097.9,6.08689571]
[1617452437727,2.90695,2098.1,2098.0,4.98227368]
[1617452437926,2.90695,2098.1,2097.4,10.10356753]
[1617452437927,2.90695,2098.1,2097.9,4.98407789]
[1617452438226,2.90695,2098.1,2097.8,4.9842426]
[1617452438726,2.90695,2098.1,2097.7,4.98681543]
[1617452438926,2.90695,2098.1,2097.5,4.98897983]
[1617452439225,2.90695,2098.1,2097.4,7.89694909]
[1617452439827,2.90695,2097.5,2097.4,7.89694909]
[1617452440229,2.90695,2097.5,2097.4,2.90695]
[1617452441832,2.90695,2097.5,2097.4,7.89242683]
[1617452442336,2.90695,2097.5,2097.4,2.90695]
[1617452442740,2.90695,2097.5,2097.4,9.00182578]
[1617452443838,2.90695,2097.5,2097.4,2.90695]
[1617452444738,17.571,2098.2,2097.4,2.90695]
[1617452445240,17.571,2098.2,2097.8,4.98467094]
[1617452445639,17.571,2098.2,2097.4,2.90695]
[1617452445640,17.571,2098.2,2097.7,4.98560122]
[1617452445839,2.90695,2097.8,2097.7,4.98560122]
[1617452446139,4.90825,2097.8,2097.7,4.98560122]
[1617452446641,4.90825,2097.8,2097.6,4.9869934]
[1617452447341,4.90825,2097.8,2097.7,4.98629144]
[1617452447640,2.90695,2097.8,2097.7,4.98629144]
[1617452448443,2.90695,2097.8,2097.6,4.98712539]
[1617452450945,2.90695,2097.8,2097.5,4.98850822]
[1617452451344,2.90695,2097.8,2097.6,4.9878327]
[1617452451647,2.90695,2097.8,2097.6,6.09481328]
[1617452451845,2.90695,2097.8,2097.6,9.00176328]
[1617452452044,2.90695,2097.8,2097.6,6.09481328]
[1617452452445,2.90695,2097.8,2097.7,4.98654515]
[1617452453547,2.90695,2097.8,2097.7,6.09772367]
[1617452455051,2.90695,2097.8,2097.6,64.62870107]
[1617452457654,17.571,2098.2,2097.6,64.62870107]
[1617452457854,17.571,2098.2,2097.7,6.10933331]
[1617452458055,17.571,2098.2,2097.8,2.90695]
[1617452458257,17.571,2098.2,2097.9,4.99666709]
[1617452458656,17.571,2098.2,2098.0,4.99519939]
[1617452458857,17.571,2098.2,2098.1,4.9944876]
[1617452459556,17.571,2098.2,2097.8,2.90695]
[1617452459557,17.571,2098.2,2098.0,4.99477644]
[1617452460156,2.90695,2098.1,2098.0,4.99477644]
[1617452462460,2.90695,2098.1,2097.8,10.13672818]
[1617452462659,2.90695,2098.1,2097.8,7.22977818]
[1617452463260,2.90695,2098.1,2097.7,7.22394106]
[1617452463660,4.54535,2098.1,2097.7,7.22394106]
[1617452464062,2.90695,2097.8,2097.7,7.22394106]
[1617452464265,2.90695,2097.8,2097.6,7.22693352]
[1617452465264,2.90695,2097.8,2097.7,7.23049182]
[1617452465663,2.90695,2097.8,2097.6,7.23056527]
[1617452470768,2.90695,2097.8,2097.5,7.23110578]
[1617452471969,2.90695,2097.8,2097.1,8.34152174]
[1617452471970,2.90695,2097.8,2097.6,7.22869412]
[1617452472876,2.90695,2097.8,2097.5,8.35324624]
[1617452473676,2.90695,2097.8,2097.6,8.35152955]
[1617452474075,2.90695,2097.8,2097.5,8.35184384]
[1617452475076,2.90695,2097.8,2097.4,8.35585993]
[1617452475575,4.63785,2097.8,2097.7,7.24265099]
[1617452478476,2.90695,2097.8,2097.7,7.24265099]
[1617452479078,2.90695,2097.8,2097.3,71.17810499]
[1617452479980,2.90695,2097.8,2097.7,7.24079698]
[1617452484284,2.90695,2097.8,2097.6,7.24422818]
[1617452484483,5.41315,2097.8,2097.6,7.24422818]
[1617452484684,7.41315,2097.8,2097.6,7.24422818]
[1617452488791,7.41315,2097.8,2097.5,7.24481586]
[1617452491194,7.39963059,2097.8,2097.5,7.24481586]
[1617452491695,7.39963059,2097.8,2097.4,7.24518293]
[1617452491896,7.39963059,2097.8,2097.5,7.24464997]
[1617452493298,7.39963059,2097.8,2097.4,7.24535731]
[1617452494199,2.90695,2097.5,2097.4,7.24535731]
[1617452494799,2.90695,2097.5,2097.3,7.24733028]
[1617452495901,2.90695,2097.5,2097.2,7.24580031]
[1617452496701,2.90695,2097.5,2096.6,2.90695]
[1617452496702,2.90695,2097.5,2097.1,7.24734867]
[1617452497101,2.0,2097.4,2097.1,7.24734867]
[1617452498202,2.90695,2097.2,2097.1,7.24734867]
[1617452498403,4.86645,2097.2,2097.1,7.24734867]
[1617452499303,4.86645,2097.2,2096.9,7.2402059]
[1617452501309,6.86645,2097.2,2096.9,7.2402059]
[1617452504113,4.86645,2097.2,2096.9,7.2402059]
[1617452504614,2.90695,2097.2,2096.9,7.2402059]
[1617452509721,2.90695,2097.2,2096.8,7.23704556]
[1617452510322,2.90695,2096.9,2096.8,7.23704556]
[1617452510521,2.90695,2096.9,2096.6,2.90695]
[1617452521837,2.90695,2096.9,2096.7,8.36437567]
[1617452523440,2.90695,2096.9,2096.6,11.27282547]
[1617452524139,2.90695,2096.9,2096.7,8.37110919]
[1617452524540,2.90695,2096.9,2096.6,11.28004711]
[1617452526244,2.90695,2096.9,2096.6,2.90695]
[1617452527246,2.90695,2096.9,2096.6,11.28048925]
[1617452528847,2.90695,2096.9,2096.6,2.90695]
[1617452529147,2.90695,2096.9,2096.6,11.28052961]
[1617452529748,2.90695,2096.9,2096.6,2.90695]
[1617452535659,2.90695,2096.9,2096.8,7.25471147]
[1617452537162,2.90695,2096.9,2096.6,2.90695]
[1617452537763,2.90695,2096.9,2096.6,11.27745182]
[1617452543586,2.90695,2096.9,2096.7,8.37400469]
[1617452544288,2.90695,2096.9,2096.8,8.37529446]
[1617452546588,2.90695,2096.9,2096.7,8.37552776]
[1617452550494,2.90695,2096.9,2096.6,11.28273811]
[1617452550694,2.90695,2096.9,2096.8,63.0648]
[1617452555299,2.90695,2096.9,2096.8,71.44776138]
[1617452556099,2.90695,2096.9,2096.8,63.0648]
[1617452563817,2.90695,2096.9,2096.8,71.44497608]
[1617452566923,2.90695,2096.9,2096.8,63.0648]
[1617452568723,2.0,2097.5,2096.8,63.0648]
[1617452569324,2.0,2097.5,2097.3,7.26929491]
[1617452570325,2.0,2097.5,2097.2,7.27021453]
[1617452571326,2.90695,2097.3,2097.2,7.27021453]
[1617452571927,2.90695,2097.3,2096.9,8.3866932]
[1617452573230,2.90695,2097.0,2096.9,8.3866932]
[1617452578040,2.90695,2097.0,2096.8,63.0648]
[1617452581046,2.90695,2097.0,2096.9,9.51510749]
[1617452581346,2.571,2097.6,2097.0,66.5147]
[1617452581545,5.47795,2097.6,2097.5,2.90695]
[1617452581745,2.571,2097.6,2097.5,5.32065]
[1617452582348,2.571,2097.6,2097.5,14.82942748]
[1617452582849,2.0,2097.9,2097.5,14.82942748]
[1617452583148,2.0,2097.9,2097.5,5.32065]
[1617452583349,2.0,2097.9,2097.6,9.50576915]
[1617452583548,2.0,2097.9,2097.8,2.90695]
[1617452588952,2.0,2097.9,2097.8,12.40532486]
[1617452589255,2.0,2097.9,2097.8,2.90695]
[1617452590055,2.0,2097.9,2097.7,8.34297375]
[1617452590556,2.0,2097.9,2097.4,8.34826124]
[1617452590856,2.0,2097.9,2097.8,7.2354521]
[1617452591958,2.0,2097.9,2097.7,7.23843844]
[1617452593562,2.0,2097.9,2097.6,7.23626474]
[1617452595363,3.7743,2097.9,2097.6,7.23626474]
[1617452595664,2.90695,2097.7,2097.6,7.23626474]
[1617452596865,2.90695,2097.7,2097.5,65.66363992]
[1617452597364,2.90695,2097.7,2097.3,7.23761545]
[1617452597865,2.90695,2097.4,2097.3,7.23761545]
[1617452598066,5.35855,2097.4,2097.2,10.14721362]
[1617452599967,5.35855,2097.4,2097.2,2.90695]
[1617452603772,5.35855,2097.4,2097.2,10.14790884]
[1617452604072,5.35855,2097.4,2097.2,2.90695]
[1617452605474,2.90695,2097.4,2097.2,10.14522607]
[1617452606274,2.90695,2097.4,2097.2,2.90695]
[1617452610878,2.90695,2097.4,2097.2,10.14114174]
[1617452611277,2.90695,2097.4,2097.3,7.23394942]
[1617452611579,2.90695,2097.4,2097.2,10.14260088]
[1617452611978,2.90695,2097.4,2097.2,2.90695]
[1617452615089,2.90695,2097.4,2097.2,10.14547141]
[1617452616584,2.90695,2097.4,2097.3,7.23400939]
[1617452617586,2.90695,2097.4,2097.2,2.90695]
[1617452620288,2.90695,2097.4,2097.3,7.23170432]
[1617452620688,2.90695,2097.4,2097.2,2.90695]
[1617452622792,2.90695,2097.4,2097.3,7.22831456]
[1617452623392,2.90695,2097.4,2097.2,2.90695]
[1617452624793,2.90695,2097.4,2097.3,7.23726895]
[1617452625594,2.90695,2097.4,2097.2,10.14569071]
[1617452628297,2.90695,2097.4,2097.2,7.23874071]
[1617452628697,2.90695,2097.4,2097.1,7.24463151]
[1617452629797,2.90695,2097.4,2097.0,7.24702515]
[1617452630098,2.90695,2097.1,2097.0,7.24702515]
[1617452630298,4.74265,2097.1,2097.0,7.24702515]
[1617452630499,4.74265,2097.1,2096.9,7.24859409]
[1617452632303,2.90695,2097.1,2097.0,7.24861021]
[1617452633206,2.90695,2097.1,2096.7,8.35784609]
[1617452633404,2.90695,2097.1,2096.8,8.35583595]
[1617452634203,2.90695,2097.1,2096.9,2.90695]
[1617452634604,5.33685,2097.1,2096.7,8.35371048]
[1617452634804,5.33685,2097.1,2096.3,82.99693855]
[1617452634805,5.33685,2097.1,2096.6,8.3566641]
[1617452635305,5.33685,2097.1,2097.0,7.24303847]
[1617452637612,5.33685,2097.1,2096.9,7.24635224]
[1617452638015,5.33685,2097.1,2097.0,7.24590774]
[1617452640818,5.33685,2097.1,2096.9,7.24765771]
[1617452641217,5.33685,2097.1,2097.0,7.24800753]
[1617452641618,5.33685,2097.1,2096.9,7.24752928]
[1617452642620,5.33685,2097.1,2096.7,7.25228704]
[1617452642819,70.2782,2096.8,2096.7,7.25228704]
[1617452643322,70.2782,2096.8,2096.6,7.25425391]
[1617452644219,2.90695,2096.7,2096.6,7.25425391]
[1617452644420,2.90695,2096.7,2096.5,7.25722388]
[1617452645821,2.90695,2096.7,2096.4,7.25668599]
[1617452648626,2.90695,2096.7,2096.3,7.25748823]
[1617452648828,76.32395,2096.7,2096.3,7.25748823]
[1617452649028,76.32395,2096.7,2096.2,7.25775658]
[1617452649228,2.0,2096.6,2096.2,7.25775658]
[1617452649430,3.7602,2096.6,2096.2,7.25775658]
[1617452649728,3.7602,2096.6,2096.5,6.14148548]
[1617452649927,3.7602,2096.6,2096.5,8.548e-05]
[1617452650328,3.7602,2096.6,2096.1,7.25811921]
[1617452650730,3.7602,2096.6,2096.0,7.25817275]
[1617452651129,3.7602,2096.6,2096.1,7.25810995]
[1617452652431,2.90695,2096.2,2096.1,7.25810995]
[1617452653735,2.90695,2096.2,2095.2,2.90695]
[1617452653736,2.90695,2096.2,2096.0,7.25833556]
[1617452654336,2.90695,2096.2,2096.1,7.25828732]
[1617452654637,2.90695,2096.2,2096.0,7.25825915]
[1617452654939,2.90695,2096.2,2096.1,7.25836875]
[1617452655338,2.90695,2096.2,2096.0,7.25827939]
[1617452655939,2.90695,2096.2,2096.1,7.25820152]
[1617452656941,2.90695,2096.2,2095.2,14.66151958]
[1617452656942,2.90695,2096.2,2095.8,8.37283772]
[1617452657343,2.90695,2096.2,2095.9,8.51283559]
[1617452657842,2.90695,2096.2,2095.7,8.36330004]
[1617452658042,2.90695,2096.2,2096.1,7.24809047]
[1617452659444,2.90695,2096.2,2096.0,7.2485172]
[1617452662750,2.90695,2096.2,2095.9,7.24900982]
[1617452664351,2.90695,2096.2,2095.8,7.24917092]
[1617452664551,2.90695,2095.9,2095.8,7.24917092]
[1617452667054,4.53175,2095.9,2095.8,7.24917092]
[1617452668358,4.53175,2095.9,2095.7,7.24369166]
[1617452668560,4.53175,2095.9,2095.8,6.11830349]
[1617452669159,4.53175,2095.9,2095.7,6.1202444]
[1617452669758,4.53175,2095.9,2095.8,5.0097425]
[1617452671262,4.53175,2095.9,2095.7,5.00970257]
[1617452673063,58.2856,2095.7,2095.6,5.01024498]
[1617452673763,58.2856,2095.7,2095.5,5.01048027]
[1617452674463,2.90695,2095.6,2095.5,5.01048027]
[1617452679468,2.90695,2095.6,2095.4,5.01070716]
[1617452679667,2.90695,2095.6,2095.0,5.00348184]
[1617452680668,5.43795,2095.1,2095.0,5.00348184]
[1617452683074,5.43795,2095.1,2094.9,6.11522462]
[1617452683272,5.43795,2095.1,2094.7,2.90695]
[1617452683273,5.43795,2095.1,2095.0,6.11863653]
[1617452683973,5.43795,2095.1,2094.7,2.90695]
[1617452684173,2.90695,2095.1,2094.7,2.90695]
[1617452684373,2.90695,2095.1,2094.7,10.13725764]
[1617452684574,2.90695,2095.1,2095.0,2.90695]
[1617452687776,2.90695,2095.1,2094.8,7.22963312]
[1617452688079,2.90695,2095.1,2094.7,7.23087511]
[1617452688676,5.31765,2094.8,2094.7,10.13782511]
[1617452688976,5.31765,2094.8,2094.7,2.90695]
[1617452692479,5.31765,2094.8,2094.7,10.13343713]
[1617452693281,2.90695,2094.8,2094.7,10.13343713]
[1617452697689,58.2856,2095.7,2094.7,10.13343713]
[1617452698290,13.1668,2096.8,2095.5,5.00243954]
[1617452698490,71.4873,2096.2,2095.5,74.88103954]
[1617452698690,2.90695,2095.6,2095.5,74.88103954]
[1617452699993,2.90695,2095.6,2095.5,5.00243954]
[1617452702299,2.90695,2095.6,2095.4,6.1151876]
[1617452703702,2.90695,2095.6,2095.5,5.00407631]
[1617452704102,2.90695,2095.6,2095.4,5.00406028]
[1617452705207,2.90695,2095.6,2095.5,5.00675434]
[1617452706909,2.90695,2095.6,2095.4,6.11904653]
[1617452707912,2.90695,2095.6,2095.5,5.00660822]
[1617452708312,2.90695,2095.6,2095.4,6.1187411]
[1617452709112,2.90695,2095.6,2095.5,5.00659986]
[1617452709413,2.90695,2095.6,2094.8,77.77045]
[1617452709414,2.90695,2095.6,2095.4,6.11831452]
[1617452710416,2.90695,2095.6,2095.5,5.00658517]
[1617452710716,2.90695,2095.6,2095.4,6.11886482]
[1617452711217,2.90695,2095.6,2095.5,5.00668952]
[1617452711817,2.90695,2095.6,2095.4,6.11867896]
[1617452713120,2.90695,2095.6,2095.3,6.12058936]
[1617452713820,2.90695,2095.6,2094.8,74.8635]
[1617452713821,2.90695,2095.6,2095.4,6.11962566]
[1617452715823,2.90695,2095.6,2095.3,6.12058557]
[1617452717023,2.90695,2095.6,2095.1,7.24238193]
[1617452717723,2.90695,2095.6,2095.2,7.24044596]
[1617452718925,2.90695,2095.3,2095.2,7.24044596]
[1617452720525,2.90695,2095.3,2095.2,7.38070199]
[1617452723128,2.90695,2095.3,2095.2,0.14025603]
[1617452723730,2.90695,2095.3,2095.0,0.14025663]
[1617452723928,2.90695,2095.3,2095.2,0.14025688]
[1617452724227,2.90695,2095.3,2095.0,0.14025715]
[1617452725229,2.90695,2095.3,2094.8,83.21734433]
[1617452725230,2.90695,2095.3,2095.2,7.24093138]
[1617452728234,2.90695,2095.3,2095.2,8.37350316]
[1617452728736,58.32835,2095.3,2095.1,8.37348843]
[1617452728934,58.32835,2095.3,2094.7,12.39690356]
[1617452728935,58.32835,2095.3,2095.2,8.37284649]
[1617452729135,58.32835,2095.3,2095.2,8.51310893]
[1617452731538,2.90695,2095.3,2095.2,8.51310893]
[1617452731738,2.90695,2095.3,2095.2,8.37284649]
[1617452732738,2.90695,2095.3,2095.2,8.51310923]
[1617452746461,2.90695,2095.3,2095.2,0.14026274]
[1617452746860,2.90695,2095.3,2095.1,0.14026773]
[1617452748062,2.90695,2095.3,2095.1,9.6537444]
[1617452748262,2.571,2096.3,2095.1,9.6537444]
[1617452748463,2.571,2096.3,2095.3,56.8856]
[1617452748664,2.571,2096.3,2096.1,7.27184849]
[1617452748863,2.571,2096.3,2096.1,9.01744849]
[1617452749063,2.571,2096.3,2096.2,7.27045151]
[1617452749364,5.47795,2096.3,2096.2,7.27045151]
[1617452749763,2.90695,2096.3,2096.1,1.7456]
[1617452750065,2.90695,2096.3,2096.2,54.767]
[1617452751064,5.47795,2096.3,2096.2,54.767]
[1617452752867,5.47795,2096.3,2095.9,8.38514367]
[1617452753368,5.47795,2096.3,2095.8,2.90695]
[1617452753369,2.90695,2096.0,2095.8,2.90695]
[1617452753967,2.90695,2096.0,2095.7,8.38937615]
[1617452754167,2.90695,2096.0,2095.6,8.39222786]
[1617452754568,2.90695,2096.0,2095.7,8.39051496]
[1617452754867,2.90695,2096.0,2095.7,10.49401496]
[1617452755272,2.90695,2096.0,2095.8,8.3863459]
[1617452758773,2.90695,2096.0,2095.9,8.38974449]
[1617452759875,2.90695,2096.0,2095.8,8.39002048]
[1617452761381,2.90695,2096.0,2095.9,8.38908602]
[1617452761880,2.90695,2096.0,2095.8,8.38972706]
[1617452762880,2.90695,2096.0,2095.9,8.38892061]
[1617452764788,2.90695,2096.0,2095.8,8.38900767]
[1617452767186,2.90695,2096.0,2095.7,8.39184543]
[1617452768087,2.90695,2096.0,2095.8,8.39038238]
[1617452769586,2.90695,2096.0,2095.9,8.39224457]
[1617452775894,64.8832,2096.6,2095.9,8.39224457]
[1617452776294,64.8832,2096.6,2096.3,7.26908173]
[1617452776594,2.90695,2096.4,2096.3,7.26908173]
[1617452778897,2.90695,2096.4,2096.2,7.26956519]
[1617452779597,2.90695,2096.4,2096.3,7.26923303]
[1617452779999,2.90695,2096.4,2096.2,7.269034]
[1617452780298,77.90605,2096.4,2096.2,7.269034]
[1617452780999,2.90695,2096.4,2096.2,7.269034]
[1617452782005,2.0,2096.3,2096.2,7.269034]
[1617452782205,4.4884,2096.3,2096.2,7.269034]
[1617452784107,67.5731,2096.3,2096.2,7.269034]
[1617452784306,4.4884,2096.3,2096.2,7.269034]
[1617452784506,4.4884,2096.3,2096.0,7.27439593]
[1617452784907,4.4884,2096.3,2096.2,6.15842709]
[1617452785307,4.4884,2096.3,2096.1,6.15955567]
[1617452785707,4.4884,2096.3,2096.2,5.04101599]
[1617452789216,4.4884,2096.3,2096.1,5.04138248]
[1617452790116,4.4884,2096.3,2096.1,4.98658248]
[1617452791119,4.4884,2096.3,2095.6,6.1510266]